[Event "*** Titled Tuesday Blitz"]
[Site "Chess.com"]
[Date "2020.04.28"]
[Round "8"]
[White "VolodymyrMolyboha"]
[Black "GianmarcoVaR"]
[Result "1-0"]
[WhiteElo "2446"]
[BlackElo "2549"]
[TimeControl "180+1"]
[EndTime "11:34:02 PDT"]
[Termination "VolodymyrMolyboha won on time"]

1. e4 {[%clk 0:03:00.9]} 1... c5 {[%clk 0:02:49.8]} 2. Nf3 {[%clk 0:03:00.6]}
2... d6 {[%clk 0:02:49.8]} 3. c3 {[%clk 0:03:00.4]} 3... Nf6 {[%clk 0:02:49]} 4.
h3 {[%clk 0:03:00.6]} 4... Nc6 {[%clk 0:02:36.3]} 5. Bd3 {[%clk 0:03:00.5]} 5...
d5 {[%clk 0:02:25.7]} 6. e5 {[%clk 0:03:00.3]} 6... Nd7 {[%clk 0:02:01.5]} 7.
Bb5 {[%clk 0:02:56.4]} 7... e6 {[%clk 0:01:55.5]} 8. O-O {[%clk 0:02:55.7]} 8...
Be7 {[%clk 0:01:50.8]} 9. d4 {[%clk 0:02:54.2]} 9... O-O {[%clk 0:01:48.2]} 10.
a3 {[%clk 0:02:51.2]} 10... f6 {[%clk 0:01:41.9]} 11. exf6 {[%clk 0:02:49.3]}
11... Nxf6 {[%clk 0:01:40.9]} 12. Bg5 {[%clk 0:02:37.8]} 12... Ne4 {[%clk
0:00:54.9]} 13. Bxe7 {[%clk 0:02:36.6]} 13... Nxe7 {[%clk 0:00:53.8]} 14. dxc5
{[%clk 0:02:32.8]} 14... Ng6 {[%clk 0:00:41]} 15. Bd3 {[%clk 0:02:28.9]} 15...
Nf4 {[%clk 0:00:34.8]} 16. Bxe4 {[%clk 0:02:26.4]} 16... dxe4 {[%clk 0:00:34.7]}
17. Qxd8 {[%clk 0:02:25.8]} 17... Rxd8 {[%clk 0:00:34.3]} 18. Ne5 {[%clk
0:02:19.5]} 18... Rd5 {[%clk 0:00:28.2]} 19. Nc4 {[%clk 0:02:18.6]} 19... Rxc5
{[%clk 0:00:25]} 20. Nbd2 {[%clk 0:02:16.9]} 20... b6 {[%clk 0:00:16.8]} 21. b4
{[%clk 0:01:51.9]} 21... Rxc4 {[%clk 0:00:14.4]} 22. Nxc4 {[%clk 0:01:51.3]}
22... Ba6 {[%clk 0:00:14.7]} 23. Nd6 {[%clk 0:01:49.7]} 23... Bxf1 {[%clk
0:00:13.7]} 24. Kxf1 {[%clk 0:01:49.6]} 24... e3 {[%clk 0:00:10.7]} 25. fxe3
{[%clk 0:01:45.4]} 25... Nd5 {[%clk 0:00:11.1]} 26. Rc1 {[%clk 0:01:31.8]} 1-0

[Event "*** Titled Tuesday Blitz"]
[Site "Chess.com"]
[Date "2020.04.28"]
[Round "8"]
[White "AsaHoffmann"]
[Black "goofypenguin96"]
[Result "0-1"]
[WhiteElo "2282"]
[BlackElo "2172"]
[TimeControl "180+1"]
[EndTime "11:34:03 PDT"]
[Termination "goofypenguin96 won by resignation"]

1. d4 {[%clk 0:02:58.2]} 1... b5 {[%clk 0:02:53.8]} 2. e4 {[%clk 0:02:55.6]}
2... Bb7 {[%clk 0:02:52.9]} 3. f3 {[%clk 0:02:54.9]} 3... b4 {[%clk 0:02:50.3]}
4. Be3 {[%clk 0:02:53.5]} 4... a5 {[%clk 0:02:49.8]} 5. Bc4 {[%clk 0:02:48.8]}
5... e6 {[%clk 0:02:49.1]} 6. c3 {[%clk 0:02:46.2]} 6... d5 {[%clk 0:02:48.3]}
7. exd5 {[%clk 0:02:41.9]} 7... exd5 {[%clk 0:02:45.2]} 8. Bd3 {[%clk
0:02:39.7]} 8... Nf6 {[%clk 0:02:45]} 9. Ne2 {[%clk 0:02:38.6]} 9... Bd6 {[%clk
0:02:43.8]} 10. O-O {[%clk 0:02:36.1]} 10... O-O {[%clk 0:02:42.9]} 11. Bg5
{[%clk 0:02:33.2]} 11... h6 {[%clk 0:02:41.9]} 12. Bh4 {[%clk 0:02:32.5]} 12...
Nbd7 {[%clk 0:02:41.1]} 13. Nd2 {[%clk 0:02:29.1]} 13... c5 {[%clk 0:02:39.4]}
14. Kh1 {[%clk 0:02:21.3]} 14... c4 {[%clk 0:02:38.2]} 15. Bf5 {[%clk
0:02:16.9]} 15... Qc7 {[%clk 0:02:36.4]} 16. Bg3 {[%clk 0:02:04.3]} 16... Rae8
{[%clk 0:02:32.1]} 17. Re1 {[%clk 0:01:54.6]} 17... Bc6 {[%clk 0:02:23]} 18. Qc2
{[%clk 0:01:50.4]} 18... Nh5 {[%clk 0:02:10]} 19. Bxd6 {[%clk 0:01:45.4]} 19...
Qxd6 {[%clk 0:02:10.9]} 20. Nf1 {[%clk 0:01:40.5]} 20... g6 {[%clk 0:02:02.9]}
21. Bh3 {[%clk 0:01:37]} 21... Nf4 {[%clk 0:01:59.2]} 22. Nxf4 {[%clk 0:01:34]}
22... Qxf4 {[%clk 0:02:00.1]} 23. Qd2 {[%clk 0:01:33]} 23... Qxd2 {[%clk
0:01:54.3]} 24. Nxd2 {[%clk 0:01:30.8]} 24... Kg7 {[%clk 0:01:52.6]} 25. Kg1
{[%clk 0:01:29.3]} 25... f5 {[%clk 0:01:51.5]} 26. Kf2 {[%clk 0:01:24.6]} 26...
Kf7 {[%clk 0:01:51]} 27. g3 {[%clk 0:01:23.6]} 27... Rxe1 {[%clk 0:01:49.2]} 28.
Rxe1 {[%clk 0:01:22.4]} 28... Re8 {[%clk 0:01:49.5]} 29. Ra1 {[%clk 0:01:15.7]}
29... Nb6 {[%clk 0:01:47.4]} 30. cxb4 {[%clk 0:01:12.5]} 30... axb4 {[%clk
0:01:46.9]} 31. a3 {[%clk 0:01:11.8]} 31... b3 {[%clk 0:01:45.8]} 32. Nb1 {[%clk
0:01:09.1]} 32... Na4 {[%clk 0:01:44.6]} 33. Nc3 {[%clk 0:01:08.2]} 33... Nxb2
{[%clk 0:01:41.4]} 34. Bf1 {[%clk 0:01:07.2]} 34... Na4 {[%clk 0:01:39.8]} 35.
Ne2 {[%clk 0:00:57.3]} 35... c3 {[%clk 0:01:37.7]} 36. Nxc3 {[%clk 0:00:52.5]}
36... Nxc3 {[%clk 0:01:35.9]} 37. Bd3 {[%clk 0:00:51.5]} 37... b2 {[%clk
0:01:35]} 38. Rf1 {[%clk 0:00:49.4]} 38... Rb8 {[%clk 0:01:32.2]} 39. Bb1 {[%clk
0:00:46.7]} 39... Bb5 {[%clk 0:01:30.4]} 40. Re1 {[%clk 0:00:45.1]} 40... Nxb1
{[%clk 0:01:30]} 41. Rxb1 {[%clk 0:00:44.2]} 41... Bd3 {[%clk 0:01:30.8]} 0-1

[Event "*** Titled Tuesday Blitz"]
[Site "Chess.com"]
[Date "2020.04.28"]
[Round "8"]
[White "Nara_Kh"]
[Black "murtas73"]
[Result "0-1"]
[WhiteElo "2455"]
[BlackElo "2600"]
[TimeControl "180+1"]
[EndTime "11:34:08 PDT"]
[Termination "murtas73 won on time"]

1. e4 {[%clk 0:03:00.9]} 1... e6 {[%clk 0:02:59]} 2. d4 {[%clk 0:03:00.3]} 2...
d5 {[%clk 0:02:59.9]} 3. Nd2 {[%clk 0:02:59.8]} 3... Be7 {[%clk 0:02:58.7]} 4.
Ngf3 {[%clk 0:02:58.9]} 4... Nf6 {[%clk 0:02:58.5]} 5. e5 {[%clk 0:02:59.2]}
5... Nfd7 {[%clk 0:02:57.8]} 6. Bd3 {[%clk 0:02:59.6]} 6... c5 {[%clk
0:02:58.2]} 7. c3 {[%clk 0:03:00.1]} 7... Nc6 {[%clk 0:02:58.6]} 8. O-O {[%clk
0:02:59]} 8... g5 {[%clk 0:02:59]} 9. dxc5 {[%clk 0:02:17.7]} 9... g4 {[%clk
0:02:56.2]} 10. Nd4 {[%clk 0:02:16.7]} 10... Ndxe5 {[%clk 0:02:55.2]} 11. Be2
{[%clk 0:02:12.9]} 11... Bxc5 {[%clk 0:02:52.8]} 12. Bxg4 {[%clk 0:02:05.3]}
12... Nxd4 {[%clk 0:02:45.5]} 13. cxd4 {[%clk 0:01:59.5]} 13... Bxd4 {[%clk
0:02:46]} 14. Qa4+ {[%clk 0:01:52.4]} 14... Nc6 {[%clk 0:02:44.9]} 15. Nf3
{[%clk 0:01:46.3]} 15... Bg7 {[%clk 0:02:43.5]} 16. Bg5 {[%clk 0:01:42.3]} 16...
Qa5 {[%clk 0:02:41.8]} 17. Qc2 {[%clk 0:01:34.4]} 17... Bd7 {[%clk 0:02:35.5]}
18. Bh5 {[%clk 0:01:31.1]} 18... O-O {[%clk 0:02:32.9]} 19. a3 {[%clk
0:01:15.9]} 19... d4 {[%clk 0:02:29.1]} 20. Bg4 {[%clk 0:01:01.1]} 20... f5
{[%clk 0:02:25]} 21. Bh5 {[%clk 0:00:59.4]} 21... Qd5 {[%clk 0:02:20.6]} 22.
Rad1 {[%clk 0:00:54.2]} 22... e5 {[%clk 0:02:19.5]} 23. Nd2 {[%clk 0:00:41.7]}
23... e4 {[%clk 0:02:18.1]} 24. Nb3 {[%clk 0:00:38.2]} 24... d3 {[%clk
0:02:15.8]} 25. Nc5 {[%clk 0:00:32.4]} 25... Nd4 {[%clk 0:02:07.3]} 26. Qc1
{[%clk 0:00:20.5]} 26... Rac8 {[%clk 0:02:03.4]} 27. b4 {[%clk 0:00:13.6]} 27...
b6 {[%clk 0:01:58.9]} 28. Qf4 {[%clk 0:00:03]} 28... bxc5 {[%clk 0:01:58.2]} 29.
bxc5 {[%clk 0:00:03.4]} 29... Qe5 {[%clk 0:01:54.1]} 30. Qxe5 {[%clk 0:00:02.7]}
30... Bxe5 {[%clk 0:01:53.2]} 31. f4 {[%clk 0:00:03]} 31... Bf6 {[%clk
0:01:51.6]} 32. Bh6 {[%clk 0:00:02.6]} 32... Ba4 {[%clk 0:01:48.4]} 0-1

[Event "*** Titled Tuesday Blitz"]
[Site "Chess.com"]
[Date "2020.04.28"]
[Round "8"]
[White "AndrewDGreen"]
[Black "dvella"]
[Result "1-0"]
[WhiteElo "2261"]
[BlackElo "1797"]
[TimeControl "180+1"]
[EndTime "11:34:09 PDT"]
[Termination "AndrewDGreen won by resignation"]

1. d4 {[%clk 0:02:42.3]} 1... d5 {[%clk 0:02:59.6]} 2. Bf4 {[%clk 0:02:41.8]}
2... Nf6 {[%clk 0:02:57.7]} 3. e3 {[%clk 0:02:38.5]} 3... c6 {[%clk 0:02:57.7]}
4. c4 {[%clk 0:02:37.2]} 4... e6 {[%clk 0:02:52.7]} 5. Nc3 {[%clk 0:02:35.1]}
5... Bb4 {[%clk 0:02:50.6]} 6. a3 {[%clk 0:02:08.9]} 6... Bd6 {[%clk 0:02:44]}
7. Bg3 {[%clk 0:01:56.6]} 7... Bxg3 {[%clk 0:02:41.6]} 8. hxg3 {[%clk
0:01:55.4]} 8... O-O {[%clk 0:02:40.8]} 9. Nf3 {[%clk 0:01:51.8]} 9... Nbd7
{[%clk 0:02:37.8]} 10. Bd3 {[%clk 0:01:49.2]} 10... dxc4 {[%clk 0:02:36.9]} 11.
Bxc4 {[%clk 0:01:44.3]} 11... Nd5 {[%clk 0:02:35.5]} 12. Bd3 {[%clk 0:01:18.6]}
12... f5 {[%clk 0:02:26.5]} 13. Rc1 {[%clk 0:01:13.3]} 13... N7f6 {[%clk
0:02:21.6]} 14. Ne5 {[%clk 0:01:12]} 14... Nxc3 {[%clk 0:02:12.3]} 15. Rxc3
{[%clk 0:01:08.4]} 15... Nd5 {[%clk 0:02:08.8]} 16. Rc1 {[%clk 0:01:07.8]} 16...
Qg5 {[%clk 0:02:03.1]} 17. b4 {[%clk 0:01:00.6]} 17... Nf6 {[%clk 0:01:43.5]}
18. b5 {[%clk 0:00:58]} 18... Ng4 {[%clk 0:01:33.2]} 19. Nxg4 {[%clk 0:00:54.5]}
19... fxg4 {[%clk 0:01:33.2]} 20. Bxh7+ {[%clk 0:00:53.6]} 20... Kf7 {[%clk
0:01:29.6]} 21. Bd3 {[%clk 0:00:49.1]} 21... Bd7 {[%clk 0:01:23]} 22. Rh4 {[%clk
0:00:40.2]} 22... cxb5 {[%clk 0:00:56]} 23. Rxg4 {[%clk 0:00:33.5]} 23... Qh5
{[%clk 0:00:56.2]} 24. Rxg7+ {[%clk 0:00:32.8]} 24... Kxg7 {[%clk 0:00:51.7]}
25. Qxh5 {[%clk 0:00:33.1]} 25... Rf6 {[%clk 0:00:51.4]} 26. Qh7+ {[%clk
0:00:32.7]} 1-0

[Event "*** Titled Tuesday Blitz"]
[Site "Chess.com"]
[Date "2020.04.28"]
[Round "8"]
[White "annacramling"]
[Black "tgpgoat"]
[Result "0-1"]
[WhiteElo "1933"]
[BlackElo "2190"]
[TimeControl "180+1"]
[EndTime "11:34:14 PDT"]
[Termination "tgpgoat won on time"]

1. d4 {[%clk 0:03:00.9]} 1... Nf6 {[%clk 0:02:59.8]} 2. c4 {[%clk 0:03:00.1]}
2... c5 {[%clk 0:03:00.1]} 3. d5 {[%clk 0:02:59.8]} 3... b5 {[%clk 0:03:00.6]}
4. cxb5 {[%clk 0:03:00.2]} 4... a6 {[%clk 0:03:00.8]} 5. Nc3 {[%clk 0:03:00.5]}
5... axb5 {[%clk 0:02:56.3]} 6. e4 {[%clk 0:03:00.9]} 6... d6 {[%clk 0:02:51.9]}
7. Bxb5+ {[%clk 0:02:59.9]} 7... Nbd7 {[%clk 0:02:50.1]} 8. Bd2 {[%clk 0:02:47]}
8... Ba6 {[%clk 0:02:41.8]} 9. a4 {[%clk 0:02:46.8]} 9... Bxb5 {[%clk
0:02:40.4]} 10. axb5 {[%clk 0:02:47.2]} 10... Rxa1 {[%clk 0:02:40.2]} 11. Qxa1
{[%clk 0:02:47.3]} 11... g6 {[%clk 0:02:41.1]} 12. Nf3 {[%clk 0:02:41]} 12...
Bg7 {[%clk 0:02:41.1]} 13. O-O {[%clk 0:02:35.1]} 13... O-O {[%clk 0:02:40.7]}
14. Qa6 {[%clk 0:02:04.8]} 14... Qa8 {[%clk 0:02:31.9]} 15. Ra1 {[%clk
0:02:01.7]} 15... Qxa6 {[%clk 0:02:30]} 16. bxa6 {[%clk 0:01:57.9]} 16... Rb8
{[%clk 0:02:30.9]} 17. a7 {[%clk 0:01:54.5]} 17... Ra8 {[%clk 0:02:30.5]} 18.
Nb5 {[%clk 0:01:27.9]} 18... Ne8 {[%clk 0:02:24.3]} 19. Ra6 {[%clk 0:00:52.9]}
19... Bxb2 {[%clk 0:02:12.4]} 20. Rc6 {[%clk 0:00:51.8]} 20... Kf8 {[%clk
0:02:07.1]} 21. g4 {[%clk 0:00:21.6]} 21... Bg7 {[%clk 0:01:51.7]} 22. g5 {[%clk
0:00:20]} 22... Bh8 {[%clk 0:01:46.4]} 23. h4 {[%clk 0:00:19.1]} 23... Bg7
{[%clk 0:01:46.1]} 24. Kg2 {[%clk 0:00:17.9]} 24... Bh8 {[%clk 0:01:45.8]} 25.
Kg3 {[%clk 0:00:04.9]} 25... f5 {[%clk 0:01:31.2]} 26. exf5 {[%clk 0:00:04.1]}
26... gxf5 {[%clk 0:01:30.1]} 27. Kf4 {[%clk 0:00:03.5]} 27... Ng7 {[%clk
0:01:25.1]} 28. Rc7 {[%clk 0:00:02.6]} 28... Ke8 {[%clk 0:01:20.7]} 0-1

[Event "*** Titled Tuesday Blitz"]
[Site "Chess.com"]
[Date "2020.04.28"]
[Round "8"]
[White "CarlosRBorn"]
[Black "louis198"]
[Result "1-0"]
[WhiteElo "2677"]
[BlackElo "2467"]
[TimeControl "180+1"]
[EndTime "11:34:16 PDT"]
[Termination "CarlosRBorn won by resignation"]

1. e4 {[%clk 0:03:00.9]} 1... e6 {[%clk 0:02:59.7]} 2. Qe2 {[%clk 0:03:01]} 2...
d5 {[%clk 0:03:00.6]} 3. exd5 {[%clk 0:03:01.6]} 3... Qxd5 {[%clk 0:03:01.1]} 4.
Nc3 {[%clk 0:03:02.2]} 4... Qa5 {[%clk 0:03:01.2]} 5. Nf3 {[%clk 0:03:02.4]}
5... Nf6 {[%clk 0:03:01.1]} 6. d4 {[%clk 0:03:02.7]} 6... c6 {[%clk 0:03:00.7]}
7. g3 {[%clk 0:03:01.9]} 7... Be7 {[%clk 0:03:00.3]} 8. Bg2 {[%clk 0:03:02.3]}
8... O-O {[%clk 0:03:00.9]} 9. O-O {[%clk 0:03:02.7]} 9... Nbd7 {[%clk
0:02:52.8]} 10. Ne5 {[%clk 0:03:01.3]} 10... Re8 {[%clk 0:02:47.5]} 11. Re1
{[%clk 0:02:59.1]} 11... c5 {[%clk 0:02:13]} 12. Bd2 {[%clk 0:02:17]} 12... cxd4
{[%clk 0:02:06]} 13. Nd5 {[%clk 0:02:17.1]} 13... Qd8 {[%clk 0:02:02.8]} 14.
Nxf7 {[%clk 0:02:12.9]} 14... Kxf7 {[%clk 0:01:53.9]} 15. Qxe6+ {[%clk
0:02:12.3]} 15... Kf8 {[%clk 0:01:53.4]} 16. Nxe7 {[%clk 0:02:01.9]} 16... Nc5
{[%clk 0:01:38]} 17. Qc4 {[%clk 0:01:55.2]} 17... Ne6 {[%clk 0:01:10.3]} 18.
Nxc8 {[%clk 0:01:49.2]} 18... Rxc8 {[%clk 0:01:09.4]} 19. Bb4+ {[%clk
0:01:49.2]} 19... Kf7 {[%clk 0:01:00.8]} 20. Qb3 {[%clk 0:01:49.4]} 20... Qb6
{[%clk 0:00:55.6]} 21. Re5 {[%clk 0:01:40.1]} 21... Ng4 {[%clk 0:00:33.9]} 22.
Re2 {[%clk 0:01:18.2]} 22... a5 {[%clk 0:00:29.6]} 23. Qf3+ {[%clk 0:01:13.7]}
23... Nf6 {[%clk 0:00:28.7]} 24. Ba3 {[%clk 0:01:13.6]} 24... Ng5 {[%clk
0:00:25.7]} 25. Qd3 {[%clk 0:01:12.3]} 25... Rxe2 {[%clk 0:00:24.9]} 26. Qxe2
{[%clk 0:01:13.2]} 26... Re8 {[%clk 0:00:24.3]} 27. Qd3 {[%clk 0:01:13.5]} 27...
Nge4 {[%clk 0:00:18.2]} 28. Rd1 {[%clk 0:01:10.1]} 28... Rd8 {[%clk 0:00:17.6]}
29. Bxe4 {[%clk 0:01:10.2]} 1-0

[Event "*** Titled Tuesday Blitz"]
[Site "Chess.com"]
[Date "2020.04.28"]
[Round "8"]
[White "Anaj14"]
[Black "ParvizGasimov"]
[Result "1-0"]
[WhiteElo "2231"]
[BlackElo "2284"]
[TimeControl "180+1"]
[EndTime "11:34:16 PDT"]
[Termination "Anaj14 won by resignation"]

1. e4 {[%clk 0:02:57.7]} 1... e6 {[%clk 0:02:59.5]} 2. d3 {[%clk 0:02:57.5]}
2... d5 {[%clk 0:02:59.6]} 3. Nd2 {[%clk 0:02:58.4]} 3... Nf6 {[%clk 0:02:59.5]}
4. Ngf3 {[%clk 0:02:58.6]} 4... b6 {[%clk 0:02:59.8]} 5. c3 {[%clk 0:02:56.6]}
5... dxe4 {[%clk 0:02:57.7]} 6. dxe4 {[%clk 0:02:56.4]} 6... Bb7 {[%clk
0:02:58.2]} 7. Qc2 {[%clk 0:02:56.1]} 7... Nbd7 {[%clk 0:02:48.6]} 8. Bb5 {[%clk
0:02:54]} 8... a6 {[%clk 0:02:45]} 9. Be2 {[%clk 0:02:51.5]} 9... Nc5 {[%clk
0:02:42.4]} 10. e5 {[%clk 0:02:50.6]} 10... Nd5 {[%clk 0:02:35]} 11. O-O {[%clk
0:02:41.5]} 11... Nf4 {[%clk 0:02:34]} 12. Bc4 {[%clk 0:02:39.9]} 12... b5
{[%clk 0:02:31.1]} 13. Bb3 {[%clk 0:02:39.8]} 13... g5 {[%clk 0:02:20.2]} 14.
Rd1 {[%clk 0:02:26.2]} 14... g4 {[%clk 0:00:57.2]} 15. Ne1 {[%clk 0:02:16.7]}
15... Qh4 {[%clk 0:00:48.1]} 16. Nf1 {[%clk 0:02:01]} 16... Qh3 {[%clk
0:00:27.5]} 17. Bxf4 {[%clk 0:01:43.6]} 17... Qh5 {[%clk 0:00:12.9]} 18. Rd4
{[%clk 0:01:34.6]} 18... Bg7 {[%clk 0:00:10.5]} 19. Ng3 {[%clk 0:01:23.1]} 19...
Qh4 {[%clk 0:00:07.9]} 20. Qd2 {[%clk 0:01:18.3]} 20... h6 {[%clk 0:00:03]} 21.
Rd1 {[%clk 0:01:15.6]} 21... O-O {[%clk 0:00:02.4]} 22. Bc2 {[%clk 0:01:12.3]}
22... Rad8 {[%clk 0:00:02]} 23. Rxd8 {[%clk 0:01:10.9]} 1-0

[Event "*** Titled Tuesday Blitz"]
[Site "Chess.com"]
[Date "2020.04.28"]
[Round "8"]
[White "chessfrendz"]
[Black "Pawnpusherschessaccademy"]
[Result "0-1"]
[WhiteElo "2405"]
[BlackElo "2259"]
[TimeControl "180+1"]
[EndTime "11:34:22 PDT"]
[Termination "Pawnpusherschessaccademy won by resignation"]

1. e4 {[%clk 0:03:00.9]} 1... e5 {[%clk 0:02:58.5]} 2. Nf3 {[%clk 0:03:00.1]}
2... Nc6 {[%clk 0:02:58.9]} 3. Bb5 {[%clk 0:02:59.6]} 3... a6 {[%clk 0:02:58.8]}
4. Ba4 {[%clk 0:02:59.2]} 4... Nf6 {[%clk 0:02:59]} 5. O-O {[%clk 0:02:57.7]}
5... Be7 {[%clk 0:02:59.4]} 6. Re1 {[%clk 0:02:57.5]} 6... b5 {[%clk 0:03:00]}
7. Bb3 {[%clk 0:02:57.6]} 7... O-O {[%clk 0:03:00.9]} 8. c3 {[%clk 0:02:57.3]}
8... d5 {[%clk 0:03:01]} 9. exd5 {[%clk 0:02:55.8]} 9... Nxd5 {[%clk 0:03:01.9]}
10. Nxe5 {[%clk 0:02:53.9]} 10... Nxe5 {[%clk 0:03:02.8]} 11. Rxe5 {[%clk
0:02:53.1]} 11... c6 {[%clk 0:03:03.7]} 12. d4 {[%clk 0:02:52.2]} 12... Bd6
{[%clk 0:03:03.7]} 13. Re1 {[%clk 0:02:51.8]} 13... Qh4 {[%clk 0:03:04.1]} 14.
g3 {[%clk 0:02:51.1]} 14... Qh3 {[%clk 0:03:04.4]} 15. Qf3 {[%clk 0:02:50.6]}
15... Bg4 {[%clk 0:03:02.5]} 16. Qg2 {[%clk 0:02:50.1]} 16... Qh5 {[%clk
0:03:02.3]} 17. Nd2 {[%clk 0:02:48.6]} 17... Rae8 {[%clk 0:02:53.5]} 18. Rxe8
{[%clk 0:02:34.1]} 18... Rxe8 {[%clk 0:02:52]} 19. f3 {[%clk 0:02:34.1]} 19...
Re1+ {[%clk 0:02:15.3]} 20. Kf2 {[%clk 0:02:33.1]} 20... Bh3 {[%clk 0:02:15]}
21. Qxh3 {[%clk 0:02:19.5]} 21... Qxh3 {[%clk 0:01:59.2]} 22. Kxe1 {[%clk
0:02:19]} 22... Qxh2 {[%clk 0:01:43.2]} 23. Nf1 {[%clk 0:02:15.1]} 23... Bxg3+
{[%clk 0:01:37.6]} 24. Nxg3 {[%clk 0:02:14.6]} 24... Qxg3+ {[%clk 0:01:38.5]}
25. Ke2 {[%clk 0:02:14.3]} 25... Qg2+ {[%clk 0:01:36.7]} 26. Kd3 {[%clk
0:02:10.7]} 26... Qf1+ {[%clk 0:01:34.3]} 27. Kc2 {[%clk 0:02:06.5]} 27... Ne3+
{[%clk 0:01:28.3]} 28. Bxe3 {[%clk 0:02:05.3]} 28... Qxa1 {[%clk 0:01:28.7]} 29.
Bc1 {[%clk 0:02:03.2]} 29... a5 {[%clk 0:01:27.6]} 30. a4 {[%clk 0:01:20.8]}
30... bxa4 {[%clk 0:01:27.2]} 31. Bc4 {[%clk 0:01:20.8]} 31... a3 {[%clk
0:01:26.5]} 32. bxa3 {[%clk 0:01:18.5]} 32... h5 {[%clk 0:01:24.7]} 33. f4
{[%clk 0:01:08.9]} 33... h4 {[%clk 0:01:24.3]} 34. d5 {[%clk 0:01:08.5]} 34...
cxd5 {[%clk 0:01:23.7]} 35. Bxd5 {[%clk 0:01:07.8]} 35... h3 {[%clk 0:01:21.3]}
36. f5 {[%clk 0:01:02.9]} 36... h2 {[%clk 0:01:19.3]} 37. f6 {[%clk 0:00:44.1]}
37... gxf6 {[%clk 0:01:13.3]} 0-1

[Event "*** Titled Tuesday Blitz"]
[Site "Chess.com"]
[Date "2020.04.28"]
[Round "8"]
[White "Tsubasa"]
[Black "CaspiIsrael"]
[Result "0-1"]
[WhiteElo "2414"]
[BlackElo "2623"]
[TimeControl "180+1"]
[EndTime "11:34:24 PDT"]
[Termination "CaspiIsrael won by resignation"]

1. d4 {[%clk 0:03:00.9]} 1... f5 {[%clk 0:02:57.9]} 2. Bg5 {[%clk 0:02:59.3]}
2... g6 {[%clk 0:02:57.7]} 3. Nc3 {[%clk 0:02:55.3]} 3... Bg7 {[%clk 0:02:57.5]}
4. e4 {[%clk 0:02:54.5]} 4... fxe4 {[%clk 0:02:58.4]} 5. Nxe4 {[%clk 0:02:54]}
5... d5 {[%clk 0:02:58.2]} 6. Nc5 {[%clk 0:02:52.3]} 6... b6 {[%clk 0:02:56.8]}
7. Nb3 {[%clk 0:02:52]} 7... Nh6 {[%clk 0:02:56.2]} 8. Nf3 {[%clk 0:02:48.9]}
8... Nf7 {[%clk 0:02:56]} 9. Bf4 {[%clk 0:02:46.2]} 9... O-O {[%clk 0:02:55.8]}
10. Qd2 {[%clk 0:02:45.8]} 10... a5 {[%clk 0:02:54.9]} 11. a4 {[%clk 0:02:41.8]}
11... Bg4 {[%clk 0:02:54.2]} 12. Be2 {[%clk 0:02:40.3]} 12... Nc6 {[%clk
0:02:53.1]} 13. O-O {[%clk 0:02:34.6]} 13... Nd6 {[%clk 0:02:51.2]} 14. Bh6
{[%clk 0:02:10.8]} 14... Bxh6 {[%clk 0:02:11.4]} 15. Qxh6 {[%clk 0:02:07]} 15...
Bxf3 {[%clk 0:02:11.7]} 16. Bxf3 {[%clk 0:01:59.8]} 16... Rxf3 {[%clk 0:02:10]}
17. gxf3 {[%clk 0:01:56.8]} 17... Nf5 {[%clk 0:02:08.5]} 18. Qf4 {[%clk
0:01:53.6]} 18... Qd7 {[%clk 0:02:05.9]} 19. Rfe1 {[%clk 0:01:30.2]} 19... Rf8
{[%clk 0:02:06]} 20. Qg4 {[%clk 0:01:29]} 20... Rf6 {[%clk 0:01:57.2]} 21. c3
{[%clk 0:01:24.5]} 21... h5 {[%clk 0:01:45.1]} 22. Qg5 {[%clk 0:01:22.4]} 22...
Ng7 {[%clk 0:01:44.1]} 23. Re3 {[%clk 0:01:13.6]} 23... Ne6 {[%clk 0:01:41.4]}
24. Qg3 {[%clk 0:01:05.5]} 24... Nf4 {[%clk 0:01:41.2]} 25. Rae1 {[%clk
0:01:00.6]} 25... e6 {[%clk 0:01:40.6]} 26. Nc1 {[%clk 0:00:57.9]} 26... Ne7
{[%clk 0:01:28.8]} 27. Nd3 {[%clk 0:00:55.7]} 27... Nxd3 {[%clk 0:01:25.4]} 28.
Rxd3 {[%clk 0:00:55.8]} 28... Nf5 {[%clk 0:01:25.3]} 29. Qe5 {[%clk 0:00:52.6]}
29... Kf7 {[%clk 0:01:25.1]} 30. b3 {[%clk 0:00:49.3]} 30... Nh4 {[%clk
0:01:23]} 31. Qg3 {[%clk 0:00:45.4]} 31... Nf5 {[%clk 0:01:22.9]} 32. Qg5 {[%clk
0:00:41.5]} 32... Qc6 {[%clk 0:01:18.3]} 33. Qf4 {[%clk 0:00:28.5]} 33... g5
{[%clk 0:01:14.3]} 34. Qe5 {[%clk 0:00:26.6]} 34... Nh4 {[%clk 0:01:13.9]} 35.
Qxg5 {[%clk 0:00:24.7]} 35... Rg6 {[%clk 0:01:13.7]} 0-1

[Event "*** Titled Tuesday Blitz"]
[Site "Chess.com"]
[Date "2020.04.28"]
[Round "8"]
[White "Megagigahiper3345"]
[Black "suyu28"]
[Result "1/2-1/2"]
[WhiteElo "2464"]
[BlackElo "2594"]
[TimeControl "180+1"]
[EndTime "11:34:26 PDT"]
[Termination "Game drawn by repetition"]

1. d4 {[%clk 0:03:00.9]} 1... Nf6 {[%clk 0:02:59.9]} 2. c4 {[%clk 0:02:53.6]}
2... e6 {[%clk 0:02:59.9]} 3. Nf3 {[%clk 0:02:52.9]} 3... d5 {[%clk 0:02:59.9]}
4. Nc3 {[%clk 0:02:53]} 4... dxc4 {[%clk 0:03:00.2]} 5. e4 {[%clk 0:02:46.2]}
5... b5 {[%clk 0:03:00.4]} 6. e5 {[%clk 0:02:43.5]} 6... Nd5 {[%clk 0:03:01]} 7.
Nxb5 {[%clk 0:02:43.2]} 7... Nb6 {[%clk 0:03:01.6]} 8. Be2 {[%clk 0:02:34.9]}
8... Nc6 {[%clk 0:03:02.2]} 9. Be3 {[%clk 0:02:33.7]} 9... Be7 {[%clk
0:03:02.2]} 10. O-O {[%clk 0:02:33.9]} 10... O-O {[%clk 0:03:02.7]} 11. Rc1
{[%clk 0:02:32.8]} 11... Ba6 {[%clk 0:02:55.6]} 12. Nc3 {[%clk 0:02:30.7]} 12...
Qd7 {[%clk 0:02:49]} 13. h4 {[%clk 0:02:25.2]} 13... Rfd8 {[%clk 0:02:44.6]} 14.
h5 {[%clk 0:02:25.1]} 14... h6 {[%clk 0:02:44.5]} 15. b3 {[%clk 0:02:21.2]}
15... Ba3 {[%clk 0:02:38.8]} 16. Rb1 {[%clk 0:02:18.2]} 16... Bb4 {[%clk
0:02:35.2]} 17. Ne4 {[%clk 0:02:13.9]} 17... Qd5 {[%clk 0:02:29.1]} 18. Ng3
{[%clk 0:02:08.7]} 18... Qa5 {[%clk 0:02:24.9]} 19. Qc1 {[%clk 0:01:33.7]} 19...
c3 {[%clk 0:02:09.5]} 20. Bxh6 {[%clk 0:01:16.9]} 20... gxh6 {[%clk 0:01:56.5]}
21. Qxh6 {[%clk 0:01:07.5]} 21... Nxd4 {[%clk 0:01:55]} 22. Ng5 {[%clk
0:00:48.3]} 22... Nxe2+ {[%clk 0:01:54.2]} 23. Nxe2 {[%clk 0:00:46]} 23... Bd3
{[%clk 0:01:55.1]} 24. Nxf7 {[%clk 0:00:21.8]} 24... Kxf7 {[%clk 0:01:41.5]} 25.
Qf6+ {[%clk 0:00:21.2]} 25... Ke8 {[%clk 0:01:39.9]} 26. Qxe6+ {[%clk
0:00:19.7]} 26... Be7 {[%clk 0:01:39.6]} 27. Nf4 {[%clk 0:00:14.2]} 27... Bxb1
{[%clk 0:01:23.6]} 28. Qg8+ {[%clk 0:00:12.8]} 28... Kd7 {[%clk 0:01:23.1]} 29.
Qe6+ {[%clk 0:00:12]} 29... Ke8 {[%clk 0:01:21.4]} 30. Qg8+ {[%clk 0:00:11.8]}
30... Bf8 {[%clk 0:01:11.2]} 31. Qe6+ {[%clk 0:00:12.2]} 31... Be7 {[%clk
0:01:10.4]} 1/2-1/2